bitfinex-derivatives/quotes_BTCF0:USTF0_20241104
["timestamp","ask_amount","ask_price","bid_price","bid_amount"]
[1730719265760,0.3608,68997.0,68996.0,0.072515]
[1730719266061,0.36297442,69005.0,68995.0,0.13925146]
[1730719266062,0.43548042,69005.0,68995.0,0.13925146]
[1730719266368,0.43548042,69005.0,69004.0,0.072506]
[1730719268762,0.43548042,69005.0,69004.0,0.073506]
[1730719268954,0.43548042,69005.0,69004.0,0.074506]
[1730719269152,0.43548042,69005.0,69004.0,0.002]
[1730719270558,0.87024042,69005.0,69004.0,0.002]
[1730719271065,0.43548042,69005.0,69004.0,0.002]
[1730719272069,0.56710627,69005.0,69004.0,0.00098163]
[1730719272252,1.00186627,69005.0,69004.0,0.00098163]
[1730719272562,0.072519,68992.0,68991.0,0.104319]
[1730719272763,0.072519,68992.0,68982.0,0.3608]
[1730719272764,0.072528,68983.0,68982.0,0.074527]
[1730719272961,0.072528,68983.0,68982.0,0.072527]
[1730719273159,0.07253,68981.0,68980.0,0.04384308]
[1730719273466,0.07253,68981.0,68980.0,0.072531]
[1730719273771,0.15359147,68981.0,68980.0,0.072531]
[1730719273964,0.15244698,68981.0,68980.0,0.072531]
[1730719274955,0.15244698,68981.0,68980.0,0.086531]
[1730719275158,0.15244698,68981.0,68980.0,0.014]
[1730719275366,0.15244698,68981.0,68977.0,0.04450922]
[1730719275568,0.072532,68979.0,68978.0,0.072533]
[1730719275879,0.15244898,68979.0,68978.0,0.072533]
[1730719276769,0.20133125,68979.0,68978.0,0.078533]
[1730719276977,0.15244898,68979.0,68978.0,0.078533]
[1730719278169,0.15244898,68979.0,68978.0,0.081533]
[1730719278473,0.15244083,68979.0,68978.0,0.081533]
[1730719278854,0.15244092,68979.0,68978.0,0.081533]
[1730719280066,0.072532,68979.0,68978.0,0.17468698]
[1730719282263,0.072527,68985.0,68984.0,0.072527]
[1730719282463,0.072524,68988.0,68987.0,0.072523]
[1730719283361,0.072524,68988.0,68987.0,0.103523]
[1730719284167,0.072524,68988.0,68987.0,0.104523]
[1730719284769,0.3608,68993.0,68987.0,0.104523]
[1730719284770,0.3608,68993.0,68987.0,0.19742598]
[1730719285068,0.21176146,69000.0,68992.0,0.072519]
[1730719285271,0.072518,68993.0,68992.0,0.072519]
[1730719286171,0.072516,68996.0,68995.0,0.072512]
[1730719286965,0.433312,68999.0,68998.0,0.072512]
[1730719288281,0.433312,68999.0,68998.0,0.073512]
[1730719289286,0.434312,68999.0,68998.0,0.074512]
[1730719289476,0.57356346,68999.0,68998.0,0.074512]
[1730719291780,0.434312,68999.0,68998.0,0.074512]
[1730719291967,0.3618,68999.0,68998.0,0.074512]
[1730719292666,0.001,68999.0,68998.0,0.074512]
[1730719293876,0.073511,68999.0,68998.0,0.074512]
[1730719294678,0.21276246,68999.0,68998.0,0.002]
[1730719295073,0.25058957,68999.0,68998.0,0.002]
[1730719296671,0.24987704,68999.0,68998.0,0.002]
[1730719297574,0.29295783,68999.0,68998.0,0.002]
[1730719298182,0.29295783,68999.0,68998.0,0.03823293]
[1730719299278,0.34173968,68999.0,68998.0,0.03823293]
[1730719300583,0.29295783,68999.0,68998.0,0.03823293]
[1730719301278,0.29219059,68999.0,68998.0,0.03823293]
[1730719301481,0.65299059,68999.0,68998.0,0.03823293]
[1730719302089,0.57356246,68999.0,68998.0,0.03823293]
[1730719302580,0.434311,68999.0,68998.0,0.11074493]
[1730719302776,0.57356246,68999.0,68998.0,0.03823293]
[1730719303184,1.05165248,68999.0,68998.0,0.03823293]
[1730719310090,1.17818358,68999.0,68998.0,1e-08]
[1730719314986,1.29158358,68999.0,68998.0,1e-08]
[1730719316381,1.24370114,68999.0,68998.0,1e-08]
[1730719316579,1.08797921,68999.0,68998.0,1e-08]
[1730719316779,1.20137921,68999.0,68998.0,1e-08]
[1730719317181,1.16505248,68999.0,68998.0,1e-08]
[1730719321295,0.73025248,68999.0,68998.0,1e-08]
[1730719322488,0.61685248,68999.0,68998.0,1e-08]
[1730719325291,0.072517,68994.0,68993.0,0.105518]
[1730719325491,0.03668566,68994.0,68993.0,0.105518]
[1730719325696,0.072517,68994.0,68993.0,0.105518]
[1730719326604,0.072514,68997.0,68996.0,0.072512]
[1730719328391,0.073514,68997.0,68996.0,0.073512]
[1730719328815,0.075514,68997.0,68996.0,0.074512]
[1730719334201,0.072512,68999.0,68996.0,0.074512]
[1730719334410,0.072512,68999.0,68998.0,0.072512]
[1730719335308,0.074512,68999.0,68998.0,0.072512]
[1730719335998,0.072512,68999.0,68998.0,0.072512]
[1730719336199,0.074512,68999.0,68998.0,0.073512]
[1730719336802,0.074512,68999.0,68998.0,0.074512]
[1730719338306,0.435312,68999.0,68998.0,0.074512]
[1730719339301,0.435312,68999.0,68998.0,0.002]
[1730719339909,0.870112,68999.0,68989.0,0.04322065]
[1730719340105,0.072526,68985.0,68984.0,0.04322065]
[1730719340302,0.072529,68982.0,68979.0,0.05761734]
[1730719340613,0.072529,68982.0,68981.0,0.07253]
[1730719342117,0.3608,68984.0,68983.0,0.072528]
[1730719342713,0.3608,68984.0,68983.0,0.507408]
[1730719343615,0.07252,68991.0,68990.0,0.072521]
[1730719344002,0.07252,68991.0,68990.0,0.11572805]
[1730719345010,0.07252,68991.0,68990.0,0.072521]
[1730719345608,0.07252,68991.0,68990.0,0.083521]
[1730719347202,0.10869128,68991.0,68990.0,0.12707401]
[1730719347604,0.433315,68997.0,68996.0,0.072515]
[1730719347804,0.39703619,68997.0,68996.0,0.072515]
[1730719348313,0.3608,68997.0,68996.0,0.072515]
[1730719348515,0.433307,69004.0,68996.0,0.072515]
[1730719348814,0.3608,69004.0,69003.0,0.072507]
[1730719349117,0.39757003,69004.0,69003.0,0.072507]
[1730719349611,0.47007603,69004.0,69003.0,0.072507]
[1730719349914,0.47107603,69004.0,69003.0,0.072507]
[1730719350300,0.47007603,69004.0,69003.0,0.072507]
[1730719350515,0.47107603,69004.0,69003.0,0.073507]
[1730719350700,0.47207603,69004.0,69003.0,0.074507]
[1730719351415,0.47207603,69004.0,69003.0,0.11814875]
[1730719351610,0.47207603,69004.0,69003.0,0.074507]
[1730719352308,0.47207603,69004.0,69003.0,0.002]
[1730719354408,0.435306,69004.0,69003.0,0.002]
[1730719360519,0.074506,69004.0,69003.0,0.002]
[1730719361018,0.435306,69004.0,69003.0,0.002]
[1730719362022,0.074506,69004.0,69003.0,0.002]
[1730719362208,0.435306,69004.0,69003.0,0.002]
[1730719362412,0.56597524,69004.0,69003.0,0.002]
[1730719362624,0.20517524,69004.0,69003.0,0.002]
[1730719362815,0.56597524,69004.0,69003.0,0.002]
[1730719364422,0.56600064,69004.0,69003.0,0.002]
[1730719365221,0.56558604,69004.0,69003.0,0.002]
[1730719366225,0.56558604,69004.0,69003.0,0.1107373]
[1730719367027,0.56558604,69004.0,69003.0,0.0382303]
[1730719368916,0.56564398,69004.0,69003.0,0.0382303]
[1730719369120,0.56567944,69004.0,69003.0,0.0382303]
[1730719369528,0.435306,69004.0,69003.0,0.0382303]
[1730719372224,0.47217596,69004.0,69003.0,0.0382303]
[1730719372529,0.435306,69004.0,69003.0,0.0382303]
[1730719373126,0.435306,69004.0,69003.0,0.0744606]
[1730719373323,0.47214759,69004.0,69003.0,0.0744606]
[1730719373720,0.90683381,69004.0,69003.0,0.0744606]
[1730719374125,0.47207381,69004.0,69003.0,0.0744606]
[1730719374326,0.90683381,69004.0,69003.0,0.0744606]
[1730719374523,0.90683381,69004.0,68990.0,0.03623713]
[1730719374524,0.07252,68991.0,68990.0,0.03623713]
[1730719374731,0.57257146,68991.0,68990.0,0.03623713]
[1730719375824,0.57257146,68991.0,68990.0,0.04323713]
[1730719376123,0.57257146,68991.0,68990.0,0.04723713]
[1730719383347,0.93337146,68991.0,68990.0,0.04723713]
[1730719383838,1.50746292,68991.0,68990.0,0.04723713]
[1730719384036,1.40422583,68991.0,68990.0,0.04723713]
[1730719384238,1.47095729,68991.0,68977.0,0.031]
[1730719384422,0.072533,68978.0,68977.0,0.031]
[1730719384627,0.10846875,68978.0,68977.0,0.031]
[1730719385525,0.10846875,68978.0,68977.0,0.045]
[1730719386133,0.10817218,68978.0,68977.0,0.117535]
[1730719386329,0.001,68978.0,68977.0,0.131535]
[1730719386532,0.3608,68979.0,68977.0,0.059]
[1730719386834,0.3608,68979.0,68978.0,0.072533]
[1730719388034,0.3618,68979.0,68978.0,0.086533]
[1730719388934,0.3628,68979.0,68978.0,0.086533]
[1730719389532,0.3618,68979.0,68978.0,0.086533]
[1730719389738,0.002,68979.0,68978.0,0.098533]
[1730719390638,0.002,68979.0,68978.0,0.533453]
[1730719391040,0.072529,68983.0,68982.0,0.072529]
[1730719391234,0.072521,68990.0,68989.0,0.072521]
[1730719392651,0.072521,68990.0,68989.0,0.077521]
[1730719392941,0.072521,68990.0,68989.0,0.115021]
[1730719392942,0.073521,68990.0,68989.0,0.115021]
[1730719393141,0.21277246,68990.0,68989.0,0.012]
[1730719394743,0.073521,68990.0,68989.0,0.069593]
[1730719395044,0.073521,68990.0,68989.0,0.012]
[1730719395253,0.073521,68990.0,68989.0,0.084522]
[1730719395551,0.073521,68990.0,68989.0,0.24997374]
[1730719395951,0.073521,68990.0,68989.0,0.25000603]
[1730719396255,0.073521,68990.0,68989.0,0.2499989]
[1730719396644,0.073521,68990.0,68989.0,0.17799903]
[1730719396844,0.073521,68990.0,68989.0,0.25000624]
[1730719397053,0.21277246,68990.0,68989.0,0.012]
[1730719397644,0.21277246,68990.0,68989.0,0.084522]
[1730719398241,0.001,68990.0,68989.0,0.084522]
[1730719398442,0.001,68990.0,68989.0,0.17802303]
[1730719399540,0.08033387,68990.0,68989.0,0.084522]
[1730719399838,0.20139006,68990.0,68989.0,0.084522]
[1730719400041,0.2014277,68990.0,68989.0,0.084522]
[1730719402645,0.34067916,68990.0,68989.0,0.084522]
[1730719403545,0.34067916,68990.0,68989.0,0.012]
[1730719407552,0.21277246,68990.0,68989.0,0.05522049]
[1730719410061,0.21277246,68990.0,68989.0,0.084522]
[1730719412763,0.21277246,68990.0,68989.0,0.012]
[1730719414464,0.39643498,68990.0,68989.0,0.012]
[1730719414868,0.55502102,68990.0,68989.0,0.012]
[1730719415562,0.39643498,68990.0,68989.0,0.012]
[1730719415764,0.49896977,68990.0,68989.0,0.012]
[1730719415965,0.33952363,68990.0,68989.0,0.012]
[1730719419566,0.34042541,68990.0,68989.0,0.012]
[1730719420471,0.56197395,68990.0,68989.0,0.084522]
[1730719421667,0.61917865,68990.0,68989.0,0.084522]
[1730719422266,0.77870114,68990.0,68989.0,0.084522]
[1730719422473,0.59384349,68990.0,68989.0,0.084522]
[1730719422966,0.434321,68990.0,68989.0,0.084522]
[1730719424671,0.434321,68990.0,68989.0,0.12817828]
[1730719425274,0.52577127,68990.0,68989.0,0.12817828]
[1730719426875,0.434321,68990.0,68989.0,0.12817828]
[1730719427680,0.001,68990.0,68989.0,0.17139877]
[1730719428179,0.001,68990.0,68989.0,0.12817828]
[1730719428379,0.001,68990.0,68989.0,0.1858056]
[1730719428979,0.001,68990.0,68989.0,0.12817828]
[1730719429175,0.001,68990.0,68989.0,0.1858056]
[1730719429975,0.001,68990.0,68989.0,0.12817828]
[1730719430972,0.001,68990.0,68989.0,0.1858056]
[1730719434672,0.001,68990.0,68989.0,0.12817828]
[1730719437273,0.08125426,68990.0,68989.0,0.12817828]
[1730719440780,0.0812216,68990.0,68989.0,0.12817828]
[1730719444375,0.08144125,68990.0,68989.0,0.12817828]
[1730719444978,0.001,68990.0,68989.0,0.12817828]
[1730719451985,0.03819271,68990.0,68989.0,0.12817828]
[1730719452682,0.001,68990.0,68989.0,0.12817828]
[1730719452885,0.16497127,68990.0,68989.0,0.12817828]
[1730719453086,0.24504885,68990.0,68989.0,0.12817828]
[1730719453288,0.29371179,68990.0,68989.0,0.12817828]
[1730719453491,0.29361954,68990.0,68989.0,0.12817828]
[1730719453685,0.28726195,68990.0,68989.0,0.12817828]
[1730719453879,0.24437708,68990.0,68989.0,0.012]
[1730719454090,0.24437708,68990.0,68983.0,0.11662697]
[1730719454091,0.072531,68984.0,68983.0,0.11662697]
[1730719454386,0.24338708,68984.0,68983.0,0.072528]
[1730719455081,0.07940581,68984.0,68983.0,0.072528]
[1730719456080,0.08040581,68984.0,68983.0,0.083528]
[1730719456288,0.08140581,68984.0,68983.0,0.096528]
[1730719458182,0.08101727,68984.0,68983.0,0.096528]
[1730719460076,0.08101727,68984.0,68983.0,0.19041093]
[1730719460077,0.002,68984.0,68983.0,0.19041093]
[1730719461087,0.002,68984.0,68983.0,0.30233702]
[1730719462987,0.002,68984.0,68983.0,0.19037354]
[1730719464091,0.002,68984.0,68983.0,0.30216744]
[1730719464794,0.002,68984.0,68983.0,0.19037354]
[1730719464997,0.002,68984.0,68983.0,0.30216382]
[1730719465387,0.03098334,68985.0,68983.0,0.22963582]
[1730719465700,0.03098334,68985.0,68984.0,0.27816282]
[1730719466597,0.03198334,68985.0,68984.0,0.27816282]
[1730719466785,0.03298334,68985.0,68984.0,0.25306675]
[1730719466986,0.12443361,68985.0,68984.0,0.16637254]
[1730719467182,0.09345027,68985.0,68983.0,0.09625048]
[1730719467399,0.104727,68984.0,68983.0,0.011]
[1730719467805,0.104727,68984.0,68977.0,0.05781471]
[1730719467997,0.45225027,68978.0,68977.0,0.04336547]
[1730719468304,0.45225027,68978.0,68975.0,0.00217453]
[1730719468305,0.072536,68976.0,68975.0,0.00217453]
[1730719469302,0.07254,68972.0,68971.0,0.04336547]
[1730719469486,0.07254,68972.0,68968.0,0.04336547]
[1730719469487,0.45225027,68972.0,68968.0,0.04336547]
[1730719469794,0.032,68971.0,68967.0,0.04336547]
[1730719469997,0.072547,68965.0,68964.0,0.13036271]
[1730719470197,0.3608,68965.0,68964.0,0.04333095]
[1730719470493,0.3608,68965.0,68962.0,0.04333095]
[1730719470699,0.09145027,68963.0,68962.0,0.11588095]
[1730719470888,0.16399927,68963.0,68962.0,0.11588095]
[1730719471198,0.16399927,68963.0,68962.0,0.07255]
[1730719471499,0.072551,68961.0,68960.0,0.15935186]
[1730719472196,0.072551,68961.0,68960.0,0.11602091]
[1730719472695,0.072551,68961.0,68960.0,0.15935186]
[1730719473098,0.073551,68961.0,68960.0,0.17335186]
[1730719473290,0.001,68961.0,68960.0,0.26480213]
[1730719473494,0.001,68961.0,68960.0,0.22147118]
[1730719473691,0.002,68961.0,68960.0,0.22147118]
[1730719473890,0.002,68961.0,68960.0,0.27917955]
[1730719474091,0.002,68961.0,68960.0,0.22147118]
[1730719477003,0.002,68961.0,68960.0,0.65651118]
[1730719477908,0.072535,68977.0,68976.0,0.072533]
[1730719479203,0.001,68977.0,68976.0,0.086533]
[1730719479402,0.16498527,68977.0,68976.0,0.086533]
[1730719479703,0.09245027,68977.0,68976.0,0.086533]
[1730719480007,0.002,68977.0,68976.0,0.13277749]
[1730719482003,0.002,68977.0,68976.0,0.19046788]
[1730719482207,0.002,68977.0,68976.0,0.13277749]
[1730719483300,0.002,68977.0,68976.0,0.27213236]
[1730719483598,0.002,68977.0,68976.0,0.34159695]
[1730719483797,0.002,68977.0,68976.0,0.17593836]
[1730719484405,0.074535,68977.0,68976.0,0.17593836]
[1730719493111,0.002,68977.0,68976.0,0.17593836]
[1730719497012,0.002,68977.0,68976.0,0.34160407]
[1730719497218,0.002,68977.0,68976.0,0.26944353]
[1730719497608,0.002,68977.0,68976.0,0.34166711]
[1730719497810,0.002,68977.0,68976.0,0.26944353]
[1730719498511,0.002,68977.0,68976.0,0.34166711]
[1730719498717,0.002,68977.0,68976.0,0.26944353]
[1730719499701,0.002,68977.0,68976.0,0.26949487]
[1730719499901,0.002,68977.0,68976.0,0.34172117]
[1730719500320,0.002,68977.0,68976.0,0.26949487]
[1730719501808,0.002,68977.0,68976.0,0.30129487]
[1730719503014,0.002,68977.0,68976.0,0.30124641]
[1730719503315,0.0326,68994.0,68991.0,0.07252]
[1730719503520,0.0326,68994.0,68991.0,0.09144432]
[1730719503726,0.0326,68994.0,68993.0,0.072518]
[1730719504632,0.11400337,68994.0,68993.0,0.072518]
[1730719505511,0.0326,68994.0,68993.0,0.075518]
[1730719505714,0.1636002,68994.0,68993.0,0.075518]
[1730719507122,0.2361172,68994.0,68993.0,0.075518]
[1730719510517,0.18652037,68994.0,68993.0,0.075518]
[1730719512531,0.105117,68994.0,68993.0,0.11889194]
[1730719512922,0.105117,68994.0,68993.0,0.075518]
[1730719513734,0.105117,68994.0,68993.0,0.003]
[1730719514035,0.24445304,68994.0,68993.0,0.003]
[1730719514433,0.67929304,68994.0,68993.0,0.003]
[1730719516534,0.072521,68991.0,68984.0,0.04337394]
[1730719516730,1.0228926,68994.0,68981.0,0.07253]
[1730719516731,0.072529,68982.0,68981.0,0.07253]
[1730719518551,0.072529,68982.0,68981.0,0.11588788]
[1730719518847,0.072529,68982.0,68981.0,0.07253]
[1730719519637,0.073529,68982.0,68981.0,0.08453]
[1730719520638,0.434329,68982.0,68981.0,0.08453]
[1730719520839,0.435329,68982.0,68981.0,0.09553]
[1730719521236,0.435329,68982.0,68981.0,0.13888788]
[1730719521436,0.435329,68982.0,68981.0,0.09553]
[1730719524155,0.435329,68982.0,68981.0,0.13888788]
[1730719525748,0.435329,68982.0,68981.0,0.13888801]
[1730719527546,0.47203272,68982.0,68981.0,0.09553]
[1730719528656,0.47203708,68982.0,68981.0,0.09553]
[1730719534550,0.435329,68982.0,68981.0,0.09553]
[1730719536869,0.074529,68982.0,68981.0,0.09553]
[1730719539847,0.435329,68982.0,68981.0,0.09553]
[1730719543460,0.435329,68982.0,68981.0,0.16781991]
[1730719543646,0.435329,68982.0,68981.0,0.26168373]
[1730719543853,0.435329,68982.0,68981.0,0.16781991]
[1730719544461,0.435329,68982.0,68981.0,0.18943048]
[1730719546761,0.435329,68982.0,68981.0,0.18945703]
[1730719548770,0.435329,68982.0,68981.0,0.18947074]
[1730719549560,0.51494073,68982.0,68981.0,0.09553]
[1730719550660,0.15414073,68982.0,68981.0,0.09553]
[1730719551465,0.15410266,68982.0,68981.0,0.09553]
[1730719555767,0.51490266,68982.0,68981.0,0.09553]
[1730719556271,0.51506571,68982.0,68981.0,0.09553]
[1730719557670,0.435329,68982.0,68981.0,0.18944984]
[1730719561167,1.05312848,68982.0,68981.0,0.11691984]
[1730719561470,1.05312848,68982.0,68981.0,0.023]
[1730719561669,1.05312848,68982.0,68981.0,0.06648238]
[1730719561867,1.05312848,68982.0,68981.0,0.023]
[1730719563076,0.96166874,68982.0,68981.0,0.023]
[1730719563281,0.52678874,68982.0,68981.0,0.023]
[1730719563667,0.96166874,68982.0,68981.0,0.0664496]
[1730719563862,1.05312848,68982.0,68981.0,0.0664496]
[1730719564277,0.61824848,68982.0,68981.0,0.0664332]
[1730719564574,1.13130868,68982.0,68981.0,0.023]
[1730719564783,1.13130868,68982.0,68976.0,0.03624449]
[1730719564784,0.072535,68977.0,68976.0,0.03624449]
[1730719564974,0.60297494,68977.0,68976.0,0.03624449]
[1730719565480,0.07255,68964.0,68963.0,0.072549]
[1730719565672,0.16400974,68964.0,68963.0,0.072549]
[1730719565869,0.2001857,68964.0,68963.0,0.072549]
[1730719566083,0.072552,68960.0,68959.0,0.044639]
[1730719566274,0.072552,68960.0,68949.0,0.45225974]
[1730719566275,0.072559,68954.0,68953.0,0.10881558]
[1730719566572,0.56027414,68954.0,68953.0,0.10881558]
[1730719566777,0.56027414,68954.0,68953.0,0.03625658]
[1730719567081,0.60126495,68954.0,68953.0,0.03625658]
[1730719567378,0.69256521,68954.0,68953.0,0.03625658]
[1730719567772,0.69356521,68954.0,68953.0,0.03725658]
[1730719568165,0.79440521,68954.0,68953.0,0.03725658]
[1730719568579,0.79341923,68954.0,68953.0,0.03725658]
[1730719568979,0.072567,68946.0,68945.0,0.00217561]
[1730719569189,0.55967131,68946.0,68945.0,0.00217561]
[1730719569372,1.08624274,68946.0,68942.0,0.07252472]
[1730719569671,0.25548948,68943.0,68942.0,0.07252472]
[1730719569870,0.43103869,68943.0,68942.0,0.07252472]
[1730719570272,0.39116574,68943.0,68942.0,0.07252472]
[1730719570771,0.82732574,68943.0,68942.0,0.07552472]
[1730719571084,0.82732574,68943.0,68925.0,0.072588]
[1730719571269,0.072595,68920.0,68919.0,0.0313]
[1730719571469,0.52485474,68920.0,68919.0,0.0313]
[1730719571677,0.072598,68917.0,68916.0,0.0021762]
[1730719571892,0.25551748,68917.0,68916.0,0.0021762]
[1730719572089,0.16405774,68917.0,68916.0,0.0021762]
[1730719572284,0.16405774,68917.0,68905.0,0.0313]
[1730719572285,0.072609,68906.0,68905.0,0.0313]
[1730719572473,0.52486874,68906.0,68905.0,0.0313]
[1730719572675,0.52486874,68906.0,68905.0,0.10391]
[1730719572882,0.072605,68910.0,68909.0,0.072606]
[1730719573086,0.09145974,68915.0,68905.0,0.20944443]
[1730719573270,0.072601,68915.0,68914.0,0.072601]
[1730719573985,0.072601,68914.0,68909.0,0.072606]
[1730719574181,0.21310639,68910.0,68909.0,0.075606]
[1730719574477,0.21310639,68910.0,68909.0,0.003]
[1730719574884,0.073605,68910.0,68909.0,0.075606]
[1730719576078,0.073605,68910.0,68909.0,0.072606]
[1730719576278,0.072609,68907.0,68906.0,0.072609]
[1730719576683,0.14050139,68910.0,68909.0,0.072606]
[1730719576684,0.001,68910.0,68909.0,0.072606]
[1730719576981,0.002,68910.0,68909.0,0.072606]
[1730719578978,0.001,68910.0,68909.0,0.072606]
[1730719579386,0.0726,68915.0,68905.0,0.07455149]
[1730719579585,0.0726,68915.0,68914.0,0.072601]
[1730719580905,0.0736,68915.0,68914.0,0.072601]
[1730719581703,0.001,68915.0,68914.0,0.072601]
[1730719582199,0.00045553,68915.0,68914.0,0.072601]
[1730719583206,0.3608,68927.0,68926.0,0.072588]
[1730719584394,0.072585,68929.0,68926.0,0.072588]
[1730719584707,0.072585,68929.0,68928.0,0.072586]
[1730719586104,0.074585,68929.0,68928.0,0.074586]
[1730719586795,0.074585,68929.0,68928.0,0.075586]
[1730719587800,0.002,68929.0,68928.0,0.075586]
[1730719588806,0.074585,68929.0,68928.0,0.075586]
[1730719589894,0.002,68929.0,68928.0,0.075586]
[1730719591007,0.074585,68929.0,68928.0,0.075586]
[1730719592010,0.074585,68929.0,68928.0,0.003]
[1730719592394,0.074585,68929.0,68928.0,0.075586]
[1730719592909,0.002,68929.0,68928.0,0.075586]
[1730719593808,0.074585,68929.0,68928.0,0.075586]
[1730719594105,0.074585,68929.0,68928.0,0.003]
[1730719594996,0.072592,68922.0,68915.0,0.002]
[1730719595194,0.072592,68922.0,68908.0,0.0309]
[1730719595195,0.072606,68912.0,68911.0,0.072604]
[1730719595404,0.072607,68909.0,68908.0,0.11671055]
[1730719595599,0.32882463,68909.0,68908.0,0.072607]
[1730719597304,0.32982463,68909.0,68908.0,0.072607]
[1730719597507,0.072609,68906.0,68905.0,0.1166569]
[1730719597700,0.072615,68903.0,68902.0,0.072613]
[1730719597898,0.14476252,68903.0,68902.0,0.072613]
[1730719598305,0.07214752,68903.0,68900.0,0.14385514]
[1730719598506,0.072615,68901.0,68900.0,0.1]
[1730719598811,0.18933642,68901.0,68900.0,0.1]
[1730719599313,0.24142578,68901.0,68900.0,0.1]
[1730719600007,0.24057354,68901.0,68900.0,0.1]
[1730719600205,0.34754792,68901.0,68900.0,0.1]
[1730719600699,0.18848418,68901.0,68900.0,0.1]
[1730719601103,0.072625,68892.0,68881.0,0.14517788]
[1730719601305,0.21213639,68882.0,68881.0,0.14517788]
[1730719601509,0.18750489,68882.0,68881.0,0.14517788]
[1730719603002,0.072635,68882.0,68881.0,0.14517788]
[1730719603215,0.073635,68882.0,68881.0,0.14517788]
[1730719603597,0.072635,68882.0,68881.0,0.14517788]
[1730719603798,0.073635,68882.0,68881.0,0.14517788]
[1730719604018,0.073635,68882.0,68881.0,0.20296292]
[1730719604518,0.074635,68882.0,68881.0,0.14517788]
[1730719604716,0.074635,68882.0,68881.0,0.20296292]
[1730719604904,0.074635,68882.0,68881.0,0.14517788]
[1730719605314,0.074635,68882.0,68881.0,0.18846988]
[1730719606221,0.074635,68882.0,68881.0,0.14517788]
[1730719606608,0.074635,68882.0,68881.0,0.18846457]
[1730719607203,0.074635,68882.0,68881.0,0.26110057]
[1730719607405,0.074635,68882.0,68881.0,0.21781388]
[1730719608315,0.074635,68882.0,68881.0,0.14517788]
[1730719609607,0.105335,68882.0,68881.0,0.14517788]
[1730719611020,0.074635,68882.0,68881.0,0.14517788]
[1730719611315,0.182115,68882.0,68881.0,0.14517788]
[1730719611907,0.22642272,68882.0,68881.0,0.14517788]
[1730719614819,0.07265,68867.0,68866.0,0.0318]
[1730719615022,0.43345,68867.0,68866.0,0.0318]
[1730719615316,0.43345,68867.0,68866.0,0.104451]
[1730719615619,0.072656,68862.0,68861.0,0.14764269]
[1730719615816,0.21215739,68862.0,68861.0,0.14764269]
[1730719616015,0.21215739,68862.0,68861.0,0.14724679]
[1730719617011,0.21315739,68862.0,68861.0,0.19042451]
[1730719617212,0.21315739,68862.0,68861.0,0.14724679]
[1730719617620,0.21315739,68862.0,68861.0,0.104356]
[1730719618311,0.21415739,68862.0,68861.0,0.0317]
[1730719623313,0.072661,68857.0,68856.0,0.04318056]
[1730719623509,0.57296239,68857.0,68856.0,0.072662]
[1730719624019,0.57296239,68857.0,68855.0,0.04409528]
[1730719624020,0.072662,68856.0,68855.0,0.04409528]
[1730719624205,0.072662,68856.0,68853.0,0.0304]
[1730719624206,0.072664,68854.0,68853.0,0.0304]
[1730719624608,0.072664,68854.0,68853.0,0.103065]
[1730719625014,0.072664,68854.0,68853.0,0.16085004]
[1730719625320,0.072664,68854.0,68853.0,0.103065]
[1730719625522,0.072664,68854.0,68853.0,0.0304]
[1730719625820,0.072664,68854.0,68853.0,0.103065]
[1730719626212,0.072664,68854.0,68853.0,0.0304]
[1730719626415,0.073664,68854.0,68853.0,0.103065]
[1730719627125,0.074664,68854.0,68853.0,0.103065]
[1730719628719,0.002,68854.0,68853.0,0.103065]
[1730719628924,0.074664,68854.0,68853.0,0.103065]
[1730719629526,0.001,68854.0,68853.0,0.27376025]
[1730719629714,0.002,68854.0,68853.0,0.27376025]
[1730719629911,0.074664,68854.0,68853.0,0.17551545]
[1730719630113,0.074664,68854.0,68853.0,0.20132997]
[1730719630927,0.073664,68854.0,68853.0,0.20132997]
[1730719631122,0.074664,68854.0,68853.0,0.20132997]
[1730719632425,0.002,68854.0,68853.0,0.20132997]
[1730719632931,0.13950139,68868.0,68864.0,0.072654]
[1730719633225,0.072653,68865.0,68864.0,0.072654]
[1730719633628,0.072653,68865.0,68853.0,0.463864]
[1730719633825,0.07266,68858.0,68857.0,0.072659]
[1730719634021,0.072664,68855.0,68854.0,0.072664]
[1730719634220,0.57296139,68858.0,68853.0,0.0304]
[1730719634524,0.072664,68854.0,68853.0,0.0304]
[1730719634825,0.072664,68854.0,68853.0,0.12836907]
[1730719635127,0.072664,68854.0,68853.0,0.12870134]
[1730719635329,0.072664,68854.0,68853.0,0.20136634]
[1730719635724,0.072664,68854.0,68853.0,0.23767557]
[1730719636824,0.073664,68854.0,68853.0,0.23867557]
[1730719637419,0.074664,68854.0,68853.0,0.23867557]
[1730719639336,0.002,68854.0,68853.0,0.32553911]
[1730719639639,0.072656,68862.0,68853.0,0.28293727]
[1730719639934,0.13950139,68869.0,68864.0,0.072654]
[1730719639935,0.07265,68868.0,68864.0,0.072654]
[1730719640126,0.13950139,68869.0,68864.0,0.25779175]
[1730719640328,0.13950139,68869.0,68864.0,0.072654]
[1730719641637,0.3618,68865.0,68864.0,0.073654]
[1730719642730,0.434453,68865.0,68864.0,0.073654]
[1730719643939,0.435453,68865.0,68864.0,0.075654]
[1730719645539,0.435453,68865.0,68864.0,0.003]
[1730719647435,0.435453,68865.0,68864.0,0.06097383]
[1730719647629,0.435453,68865.0,68864.0,0.003]
[1730719647833,0.435453,68865.0,68864.0,0.075654]
[1730719652041,0.074653,68865.0,68864.0,0.075654]
[1730719653043,0.074653,68865.0,68864.0,0.003]
[1730719653840,0.11838956,68865.0,68864.0,0.003]
[1730719654137,0.11838956,68865.0,68864.0,0.04653069]
[1730719654341,0.11838956,68865.0,68864.0,0.003]
[1730719654541,0.11838956,68865.0,68864.0,0.0465334]
[1730719655346,0.072656,68862.0,68857.0,0.0580369]
[1730719655642,0.072656,68862.0,68853.0,0.03630923]
[1730719655643,0.072664,68854.0,68853.0,0.03630923]